bitfinex-derivatives/quotes_SOLF0:USTF0_20250522
["timestamp","ask_amount","ask_price","bid_price","bid_amount"]
[1747916520899,5.6077,178.31,178.3,0.03765712]
[1747916526606,5.6077,178.31,178.3,0.00748474]
[1747916534009,0.03806351,178.33,178.3,0.00748474]
[1747916535009,0.03806351,178.33,178.3,5.61538474]
[1747916535212,0.03806351,178.33,178.3,0.00748474]
[1747916535508,0.03806351,178.33,178.31,5.6077]
[1747916535712,0.03806351,178.33,178.3,0.00748474]
[1747916537013,0.03806351,178.33,178.32,5.6074]
[1747916544217,121.68,178.42,178.31,1.9316]
[1747916544410,121.68,178.42,178.32,1.9079]
[1747916544607,121.68,178.42,178.33,122.84]
[1747916545214,0.03387031,178.39,178.37,5.6058]
[1747916546511,0.03387031,178.39,178.36,0.04045722]
[1747916546914,0.03387031,178.39,178.37,5.6055]
[1747916547111,0.03387031,178.39,178.36,0.04045722]
[1747916548124,0.03387031,178.39,178.37,5.6055]
[1747916548314,0.03387031,178.39,178.36,0.04045722]
[1747916548718,0.03387031,178.39,178.37,5.6058]
[1747916549014,0.03387031,178.39,178.36,0.04045722]
[1747916549220,0.03387031,178.39,178.37,5.6056]
[1747916549420,0.03387031,178.39,178.36,0.04045722]
[1747916549722,0.03387031,178.39,178.38,5.6055]
[1747916549923,0.03387031,178.39,178.36,0.04045722]
[1747916551010,0.03387031,178.39,178.38,5.6055]
[1747916551216,0.03387031,178.39,178.36,0.04045722]
[1747916551620,0.03387031,178.39,178.38,5.6055]
[1747916551918,0.03387031,178.39,178.36,0.04045722]
[1747916552112,0.03387031,178.39,178.37,5.6057]
[1747916552720,0.03387031,178.39,178.36,5.64645722]
[1747916553117,0.03387031,178.39,178.37,5.6058]
[1747916553926,0.03387031,178.39,178.36,5.64645722]
[1747916554222,5.63907031,178.39,178.36,5.64645722]
[1747916554923,5.6056,178.38,178.36,0.04045722]
[1747916555119,0.03387031,178.39,178.36,0.04045722]
[1747916555620,5.6058,178.37,178.36,0.04045722]
[1747916555815,0.03387031,178.39,178.36,0.04045722]
[1747916557824,5.6058,178.37,178.36,0.04045722]
[1747916559327,5.6056,178.38,178.36,0.04045722]
[1747916559526,0.03387031,178.39,178.36,0.04045722]
[1747916560427,0.03387031,178.39,178.37,5.6056]
[1747916560824,0.03387031,178.39,178.36,0.04045722]
[1747916562227,5.6058,178.37,178.36,0.04045722]
[1747916573349,5.6058,178.37,178.36,5.722e-05]
[1747916573543,11.2126,178.36,178.26,4.6651281]
[1747916573752,7.19363879,178.34,178.26,4.6651281]
[1747916573944,1.9684,178.33,178.23,6.22027151]
[1747916574141,7.19363879,178.3,178.23,6.22027151]
[1747916574443,122.44,178.29,178.23,6.22027151]
[1747916574647,0.03958935,178.28,178.25,0.04099942]
[1747916575048,5.6099,178.24,178.23,6.22027151]
[1747916575343,128.0499,178.24,178.23,6.22027151]
[1747916577048,5.6102,178.23,178.22,0.03639294]
[1747916579843,122.47709744,178.24,178.22,0.03639294]
[1747916580247,0.03709744,178.24,178.22,0.03639294]
[1747916580441,0.03709744,178.24,178.22,5.64679294]
[1747916580641,0.03709744,178.24,178.22,0.03639294]
[1747916580949,5.6102,178.23,178.22,0.03639294]
[1747916583350,0.03709744,178.24,178.22,0.03639294]
[1747916584451,5.64699744,178.24,178.22,0.03639294]
[1747916585350,5.6102,178.23,178.22,0.03639294]
[1747916585546,0.03709744,178.24,178.22,0.03639294]
[1747916588154,5.6102,178.23,178.22,0.03639294]
[1747916589750,128.12,178.23,178.13,1.9013]
[1747916589949,128.12,178.23,178.09,6.22027151]
[1747916589950,9.18163879,178.22,178.09,6.22027151]
[1747916590754,0.04137078,178.17,178.14,0.04242854]
[1747916590955,122.54137078,178.17,178.14,0.04242854]
[1747916591254,5.6127,178.15,178.14,0.04242854]
[1747916595255,5.6127,178.15,178.14,2.854e-05]
[1747916595457,1.9659,178.16,178.02,1.8969]
[1747916595756,9.11423879,178.14,178.02,1.8969]
[1747916596149,1.9206,178.14,178.02,1.8969]
[1747916596651,0.03770755,178.1,178.06,0.03818561]
[1747916597750,5.65220755,178.1,178.06,5.65368561]
[1747916597946,0.03770755,178.1,178.06,0.03818561]
[1747916598655,122.58,178.16,178.06,4.06078561]
[1747916599362,5.6131,178.14,178.1,5.6141]
[1747916599658,0.04011718,178.14,178.1,0.03977308]
[1747916599853,5.65341718,178.14,178.1,5.65387308]
[1747916600055,0.04011718,178.14,178.1,0.03977308]
[1747916600462,5.6136,178.13,178.1,0.03977308]
[1747916601658,5.6137,178.12,178.1,0.03977308]
[1747916601856,0.04011718,178.14,178.1,0.03977308]
[1747916602161,5.6134,178.13,178.1,0.03977308]
[1747916602665,5.65321718,178.14,178.1,5.65397308]
[1747916603360,5.6134,178.13,178.1,5.65397308]
[1747916605158,0.04011718,178.14,178.1,0.03977308]
[1747916605967,0.04011718,178.14,178.02,1.8969]
[1747916606261,496.2861,178.14,177.97,124.02]
[1747916606467,602.9461,178.14,177.97,124.02]
[1747916607064,0.04010492,178.07,177.97,124.02]
[1747916607263,124.06010492,178.07,177.97,124.02]
[1747916607470,124.06010492,178.07,178.0,0.04282271]
[1747916607670,5.6165,178.03,178.0,5.66022271]
[1747916607859,5.65818241,178.03,178.0,5.66022271]
[1747916608468,5.617,178.02,178.0,0.04282271]
[1747916608666,0.04168241,178.03,178.0,0.04282271]
[1747916609262,5.617,178.02,178.0,0.04282271]
[1747916609569,0.04168241,178.03,178.0,0.04282271]
[1747916609767,5.6171,178.01,178.0,0.04282271]
[1747916609967,0.04168241,178.03,178.0,0.04282271]
[1747916610270,5.617,178.02,178.0,0.04282271]
[1747916610669,0.04168241,178.03,178.0,0.04282271]
[1747916610872,5.6168,178.02,178.0,0.04282271]
[1747916611070,0.04168241,178.03,178.0,0.04282271]
[1747916611373,5.65848241,178.03,178.0,0.04282271]
[1747916611771,0.04168241,178.03,178.0,0.04282271]
[1747916611963,5.65828241,178.03,178.0,0.04282271]
[1747916612168,0.04168241,178.03,178.0,0.04282271]
[1747916613275,5.6168,178.02,178.0,0.04282271]
[1747916613571,0.04168241,178.03,178.02,5.6168]
[1747916614168,0.04168241,178.03,178.0,0.04282271]
[1747916614865,0.04168241,178.03,178.01,5.6171]
[1747916615070,0.04168241,178.03,178.0,0.04282271]
[1747916615775,0.04168241,178.03,178.01,5.6171]
[1747916615975,0.04168241,178.03,178.0,0.04282271]
[1747916616277,0.04168241,178.03,178.02,5.6168]
[1747916617076,1.9,178.16,178.09,5.6144]
[1747916617471,1.9,178.16,178.05,124.08]
[1747916617672,124.08,178.18,178.06,3.8828]
[1747916618177,0.04068807,178.14,178.11,5.614]
[1747916618674,5.6134,178.13,178.1,0.03986826]
[1747916618877,0.04068807,178.14,178.1,0.03986826]
[1747916619474,0.04068807,178.14,178.11,5.6139]
[1747916619676,0.04068807,178.14,178.1,0.03986826]
[1747916620383,5.65398807,178.14,178.1,0.03986826]
[1747916620581,0.04068807,178.14,178.1,0.03986826]
[1747916623284,0.04068807,178.14,178.12,5.6136]
[1747916623488,0.04068807,178.14,178.1,0.03986826]
[1747916623781,0.04068807,178.14,178.12,5.6135]
[1747916625287,5.65378807,178.14,178.1,0.03986826]
[1747916625786,5.65378807,178.14,178.11,5.6139]
[1747916627692,0.04068807,178.14,178.12,5.6136]
[1747916628185,0.04068807,178.14,178.13,5.6133]
[1747916631494,8.807e-05,178.14,178.13,5.6133]
[1747916634793,8.807e-05,178.14,178.1,0.03986826]
[1747916635397,5.6135,178.13,178.1,0.03986826]
[1747916635692,8.807e-05,178.14,178.1,0.03986826]
[1747916636395,5.614,178.11,178.1,0.03986826]
[1747916641294,5.6134,178.13,178.1,0.03986826]
[1747916641504,8.807e-05,178.14,178.1,0.03986826]
[1747916641695,8.807e-05,178.14,178.1,5.65416826]
[1747916642088,8.807e-05,178.14,178.1,0.03986826]
[1747916642595,5.6137,178.12,178.1,0.03986826]
[1747916642997,8.807e-05,178.14,178.1,5.65406826]
[1747916643192,5.6135,178.13,178.1,5.65406826]
[1747916643797,5.6137,178.12,178.1,5.65406826]
[1747916643998,5.6137,178.12,178.1,0.03986826]
[1747916644198,8.807e-05,178.14,178.1,0.03986826]
[1747916644598,8.807e-05,178.14,178.11,5.6139]
[1747916644999,8.807e-05,178.14,178.1,0.03986826]
[1747916645599,5.6135,178.13,178.1,5.65386826]
[1747916645995,8.807e-05,178.14,178.1,0.03986826]
[1747916646190,8.807e-05,178.14,178.13,5.6133]
[1747916647498,8.807e-05,178.14,178.13,7.623]
[1747916650310,122.98,178.22,178.2,5.611]
[1747916650604,485.3,178.25,178.13,2.0097]
[1747916650900,485.3,178.25,178.11,122.96]
[1747916650901,485.3,178.25,178.1,2.0192]
[1747916651305,0.04178959,178.19,178.16,0.03717156]
[1747916652609,0.04178959,178.19,178.18,5.6118]
[1747916653308,0.04178959,178.19,178.17,5.612]
[1747916654013,0.04178959,178.19,178.18,5.6118]
[1747916655006,0.04178959,178.19,178.16,0.03717156]
[1747916655510,0.04178959,178.19,178.18,5.6118]
[1747916656014,0.04178959,178.19,178.16,0.03717156]
[1747916656711,0.04178959,178.19,178.17,5.6118]
[1747916656904,0.04178959,178.19,178.16,0.03717156]
[1747916658912,0.04178959,178.19,178.18,5.6118]
[1747916659616,0.04178959,178.19,178.16,5.64947156]
[1747916659813,0.04178959,178.19,178.16,0.03717156]
[1747916660206,0.04178959,178.19,178.18,5.6118]
[1747916660712,0.04178959,178.19,178.16,0.03717156]
[1747916660713,0.04178959,178.19,178.17,5.612]
[1747916660914,0.04178959,178.19,178.16,0.03717156]
[1747916661309,0.04178959,178.19,178.18,5.6118]
[1747916666917,0.04178959,178.19,178.17,5.612]
[1747916667217,0.04178959,178.19,178.16,0.03717156]
[1747916668017,5.65328959,178.19,178.17,5.612]
[1747916668217,5.65328959,178.19,178.16,0.03717156]
[1747916669321,0.04178959,178.19,178.18,5.6118]
[1747916671713,0.04178959,178.19,178.16,0.03717156]
[1747916672825,5.6118,178.18,178.16,0.03717156]
[1747916673221,0.04178959,178.19,178.16,0.03717156]
[1747916673423,5.65348959,178.19,178.16,5.64937156]
[1747916673624,0.04178959,178.19,178.16,0.03717156]
[1747916674123,0.04178959,178.19,178.18,5.6118]
[1747916680927,5.609,178.27,178.24,5.6098]
[1747916681626,5.6093,178.26,178.23,5.6101]
[1747916681824,128.7249,178.3,178.2,126.7]
[1747916682024,0.03786299,178.26,178.24,5.6099]
[1747916682922,5.64716299,178.26,178.24,5.6099]
[1747916683326,0.03786299,178.26,178.25,5.6096]
[1747916683924,7.21372124,178.33,178.25,126.7]
[1747916684429,7.21372124,178.33,178.21,7.15138965]
[1747916684733,7.21372124,178.33,178.25,126.68]
[1747916684936,0.0341909,178.29,178.25,0.0373483]
[1747916685433,5.6087,178.28,178.25,0.0373483]
[1747916685727,5.6087,178.28,178.25,5.6465483]
[1747916685927,0.0341909,178.29,178.25,0.0373483]
[1747916686127,0.0341909,178.29,178.25,5.6467483]
[1747916686324,5.6089,178.28,178.25,5.6467483]
[1747916686729,0.0341909,178.29,178.25,0.0373483]
[1747916687728,5.6092,178.26,178.25,0.0373483]
[1747916687933,0.0341909,178.29,178.25,0.0373483]
[1747916689235,5.6092,178.27,178.25,0.0373483]
[1747916689729,5.6092,178.26,178.25,0.0373483]
[1747916696739,1.9387909,178.29,178.18,4.69193139]
[1747916696941,1.9046,178.29,178.19,5.6112]
[1747916697238,5.6096,178.25,178.18,4.69193139]
[1747916697441,2.0198,178.28,178.21,5.6106]
[1747916697639,5.6099,178.24,178.23,5.158e-05]
[1747916700045,5.6121,178.17,178.15,123.9]
[1747916700342,125.9686,178.25,178.14,4.69193139]
[1747916700845,5.6127,178.15,178.14,4.69193139]
[1747916701550,5.65539802,178.16,178.14,4.69193139]
[1747916701733,0.04289802,178.16,178.14,4.69193139]
[1747916701936,0.04289802,178.16,178.13,0.0420438]
[1747916702242,5.22842124,178.22,178.13,0.0420438]
[1747916702744,5.22842124,178.22,178.2,5.6109]
[1747916703147,5.22842124,178.22,178.16,123.94]
[1747916703335,0.03749518,178.21,178.17,0.03565369]
[1747916703539,0.03749518,178.21,178.2,5.6111]
[1747916704841,0.03749518,178.21,178.17,0.03565369]
[1747916705846,5.6114,178.2,178.17,0.03565369]
[1747916706348,5.64839518,178.21,178.17,0.03565369]
[1747916706545,5.64839518,178.21,178.17,5.64755369]
[1747916706750,5.64839518,178.21,178.17,0.03565369]
[1747916707046,5.6111,178.2,178.17,0.03565369]
[1747916707548,0.03749518,178.21,178.17,0.03565369]
[1747916708153,0.03749518,178.21,178.18,5.6115]
[1747916708450,0.03749518,178.21,178.17,0.03565369]
[1747916708654,0.03749518,178.21,178.19,5.6114]
[1747916709554,5.6111,178.2,178.17,5.64755369]
[1747916710658,5.64829518,178.21,178.18,5.6116]
[1747916711159,5.64829518,178.21,178.17,5.64765369]
[1747916711451,5.64829518,178.21,178.17,0.03565369]
[1747916711658,0.03749518,178.21,178.18,5.6117]
[1747916711852,0.03749518,178.21,178.17,0.03565369]
[1747916713258,0.03749518,178.21,178.18,5.6116]
[1747916713757,5.64839518,178.21,178.18,5.6116]
[1747916714152,5.64839518,178.21,178.17,0.03565369]
[1747916714153,0.03749518,178.21,178.17,5.64765369]
[1747916714361,5.6112,178.2,178.17,0.03565369]
[1747916714949,5.6112,178.2,178.17,5.64755369]
[1747916716558,5.6112,178.2,178.18,5.6117]
[1747916716760,5.6112,178.2,178.17,0.03565369]
[1747916717161,5.6115,178.19,178.17,0.03565369]
[1747916718968,0.03749518,178.21,178.17,0.03565369]
[1747916719467,5.64849518,178.21,178.18,5.6116]
[1747916721370,0.03749518,178.21,178.2,5.6111]
[1747916721667,0.03749518,178.21,178.17,0.03565369]
[1747916721968,0.03749518,178.21,178.18,5.6117]
[1747916722166,0.03749518,178.21,178.17,0.03565369]
[1747916722570,0.03749518,178.21,178.2,5.6111]
[1747916724771,0.03749518,178.21,178.17,0.03565369]
[1747916726777,5.6118,178.18,178.17,0.03565369]
[1747916729277,5.6115,178.19,178.17,0.03565369]
[1747916729577,123.28,178.2,178.17,0.03565369]
[1747916730573,5.6118,178.18,178.17,0.03565369]
[1747916731979,128.8912,178.2,178.17,0.03565369]
[1747916732274,0.03749518,178.21,178.17,0.03565369]
[1747916732579,0.03749518,178.21,178.18,5.6117]
[1747916732772,0.03749518,178.21,178.17,0.03565369]
[1747916732971,0.03749518,178.21,178.19,5.6114]
[1747916733175,0.03749518,178.21,178.17,0.03565369]
[1747916733580,0.03749518,178.21,178.2,5.6111]
[1747916736187,0.03749518,178.21,178.17,0.03565369]
[1747916737178,0.03749518,178.21,178.2,5.6111]
[1747916737571,0.03749518,178.21,178.17,0.03565369]
[1747916737872,0.03749518,178.21,178.19,5.6113]
[1747916738285,0.03749518,178.21,178.2,5.6111]
[1747916739580,0.03749518,178.21,178.19,5.6113]
[1747916740286,0.03749518,178.21,178.2,5.6111]
[1747916747688,0.03749518,178.21,178.17,4.72758508]
[1747916747890,5.6112,178.2,178.17,10.33968508]
[1747916748299,0.03749518,178.21,178.17,4.72758508]
[1747916748598,5.6115,178.19,178.17,4.72758508]
[1747916748891,5.6115,178.19,178.17,0.03565369]
[1747916749595,5.6118,178.18,178.17,0.03565369]
[1747916749792,0.03749518,178.21,178.17,0.03565369]
[1747916750093,5.6114,178.2,178.17,0.03565369]
[1747916750286,0.03749518,178.21,178.17,0.03565369]
[1747916750787,5.6112,178.2,178.17,5.64765369]
[1747916751295,5.6115,178.19,178.17,0.03565369]
[1747916751494,0.03749518,178.21,178.17,0.03565369]
[1747916752595,5.6113,178.2,178.17,5.64775369]
[1747916754000,5.6113,178.2,178.17,0.03565369]
[1747916754797,5.6113,178.2,178.17,5.64775369]
[1747916755396,5.6115,178.19,178.17,5.64775369]
[1747916757598,5.6112,178.2,178.17,5.64775369]
[1747916758498,0.03749518,178.21,178.17,0.03565369]
[1747916759089,5.22842124,178.26,178.25,5.6096]
[1747916760690,0.03359758,178.27,178.26,5.6092]
[1747916761900,5.22842124,178.35,178.31,5.6076]
[1747916762398,5.22842124,178.35,178.28,121.54]
[1747916762792,5.22842124,178.35,178.3,0.03708024]
[1747916762992,5.22842124,178.35,178.33,5.607]
[1747916763193,5.22842124,178.35,178.3,0.03708024]
[1747916763502,5.22842124,178.35,178.33,5.607]
[1747916763800,5.22842124,178.35,178.3,0.03708024]
[1747916764101,5.6052,178.39,178.3,2.01118024]
[1747916764495,121.52,178.4,178.3,9.16256989]
[1747916764691,5.22842124,178.42,178.3,9.16256989]
[1747916764995,5.22842124,178.42,178.34,0.04241599]
[1747916765194,5.22842124,178.42,178.35,121.52]
[1747916765401,5.6055,178.39,178.35,121.52]
[1747916765602,5.22842124,178.42,178.34,0.04241599]
[1747916765996,5.6057,178.38,178.34,0.04241599]
[1747916766197,5.22842124,178.42,178.34,0.04241599]
[1747916766600,5.6064,178.35,178.34,0.04241599]
[1747916768413,5.6077,178.31,178.29,121.5]
[1747916768708,121.48,178.35,178.27,4.69193139]
[1747916768922,7.15138965,178.4,178.27,4.69193139]
[1747916768923,5.6085,178.29,178.27,4.69193139]
[1747916769209,121.48,178.33,178.26,121.48]
[1747916769404,0.04014493,178.31,178.28,0.04120709]
[1747916769713,0.04014493,178.31,178.2,4.69193139]
[1747916769903,7.15138965,178.32,178.2,4.69193139]
[1747916770710,7.19210175,178.28,178.24,0.03990514]
[1747916770910,121.48,178.27,178.2,4.69193139]
[1747916771610,1.8779,178.26,178.14,121.48]
[1747916772012,5.6114,178.2,178.18,0.03976347]
[1747916772206,121.53719775,178.22,178.18,0.03976347]
[1747916772708,127.14779775,178.22,178.18,5.65146347]
[1747916772905,121.53719775,178.22,178.18,0.03976347]
[1747916773803,5.6114,178.19,178.18,0.03976347]
[1747916774408,5.6112,178.2,178.18,0.03976347]
[1747916774815,2.046,178.21,178.18,0.03976347]
[1747916775114,5.6114,178.19,178.18,0.03976347]
[1747916775304,2.046,178.21,178.1,121.5]
[1747916775510,7.15138965,178.2,178.07,6.65873139]
[1747916776115,2.0005,178.19,178.07,6.65873139]
[1747916776416,0.04065195,178.15,178.11,0.0359097]
[1747916776609,127.17365195,178.15,178.11,0.0359097]
[1747916777112,5.6131,178.14,178.11,0.0359097]
[1747916777307,121.56065195,178.15,178.11,0.0359097]
[1747916777510,0.04065195,178.15,178.11,0.0359097]
[1747916777709,5.22842124,178.21,178.12,121.54]
[1747916777912,5.22842124,178.21,178.13,3.899]
[1747916778421,5.6115,178.19,178.13,125.439]
[1747916778617,5.22842124,178.21,178.13,125.439]
[1747916778917,3.843e-05,178.18,178.14,7.19317304]
[1747916779119,3.843e-05,178.18,178.17,5.6121]
[1747916779318,3.8435,178.27,178.14,7.19317304]
[1747916779517,9.4525,178.27,178.14,7.15138965]
[1747916779819,9.4525,178.27,178.21,5.6107]
[1747916780325,0.03961723,178.26,178.22,0.04039791]
[1747916781324,5.64911723,178.26,178.22,0.04039791]
[1747916781522,0.03961723,178.26,178.22,0.04039791]
[1747916782027,0.03961723,178.26,178.22,5.65079791]
[1747916782328,0.03961723,178.26,178.22,0.04039791]
[1747916782627,5.64891723,178.26,178.22,0.04039791]
[1747916783025,0.03961723,178.26,178.22,0.04039791]
[1747916783225,5.6101,178.24,178.22,0.04039791]
[1747916783523,0.03961723,178.26,178.22,0.04039791]
[1747916783730,0.03961723,178.26,178.23,5.6099]
[1747916783933,0.03961723,178.26,178.22,0.04039791]
[1747916784425,5.64901723,178.26,178.22,0.04039791]
[1747916784634,16.91660213,178.26,178.14,4.69193139]
[1747916784835,11.2569849,178.26,178.14,4.69193139]
[1747916785024,11.2569849,178.21,178.1,9.38416679]
[1747916785331,140.1535,178.2,178.1,2.90576679]
[1747916785632,0.04172403,178.17,178.05,12.51262773]
[1747916785931,0.04222521,178.13,178.09,0.03653638]
[1747916786136,5.6153,178.07,178.0,5.6174]
[1747916786430,5.6153,178.07,177.98,140.3016]
[1747916786631,136.28,178.12,177.98,140.3016]
[1747916787130,0.0398798,178.07,178.04,5.616]
[1747916787331,0.0398798,178.07,178.03,0.04186766]
[1747916788721,0.0398798,178.07,178.05,5.6156]
[1747916789832,0.0398798,178.07,178.06,5.6155]
[1747916792829,136.28,178.12,178.1,5.6141]
[1747916793031,136.28,178.12,178.03,136.36]
[1747916793236,136.36,178.16,178.03,136.36]
[1747916793727,0.0427474,178.11,178.08,0.04128712]
[1747916794936,5.6567474,178.11,178.08,0.04128712]
[1747916796337,5.6144,178.1,178.08,0.04128712]
[1747916797138,5.6567474,178.11,178.08,0.04128712]
[1747916798537,5.6143,178.1,178.08,0.04128712]
[1747916799639,5.6568474,178.11,178.08,0.04128712]
[1747916800133,0.0427474,178.11,178.08,0.04128712]
[1747916801442,0.0427474,178.11,178.1,5.6143]
[1747916801736,136.36,178.19,178.08,136.40128712]
[1747916801936,5.6121,178.17,178.13,5.6131]
[1747916802335,5.6121,178.17,178.09,3.9355]
[1747916802736,5.6121,178.17,178.11,0.03600548]
[1747916802737,0.03779457,178.15,178.11,0.03600548]
[1747916805040,0.03779457,178.15,178.14,5.613]
[1747916807745,0.03779457,178.15,178.13,5.6133]
[1747916809347,0.03779457,178.15,178.12,2.056]
[1747916809741,0.03779457,178.15,178.14,5.613]
[1747916810246,0.03779457,178.15,178.13,5.6132]
[1747916813943,0.03779457,178.15,178.11,0.03600548]
[1747916815347,5.65059457,178.15,178.11,0.03600548]
[1747916815550,0.03779457,178.15,178.11,0.03600548]
[1747916816542,5.6135,178.13,178.11,0.03600548]
[1747916816745,5.6135,178.13,178.11,5.64990548]
[1747916817151,0.03779457,178.15,178.11,0.03600548]
[1747916818150,5.6136,178.13,178.11,0.03600548]
[1747916818648,5.6136,178.13,178.11,5.64990548]
[1747916818849,5.6131,178.14,178.11,5.64990548]
[1747916819655,5.6134,178.13,178.11,5.64990548]
[1747916819844,5.6134,178.13,178.11,0.03600548]
[1747916820446,5.6132,178.14,178.11,5.64990548]
[1747916820655,0.03779457,178.15,178.11,0.03600548]
[1747916821151,5.6137,178.12,178.11,0.03600548]
[1747916821850,0.03779457,178.15,178.11,106.69600548]
[1747916822049,5.22842124,178.21,178.12,3.9487]
[1747916822250,10.83942124,178.21,178.12,140.4087]
[1747916822452,5.22842124,178.21,178.12,140.4087]
[1747916822951,0.0359302,178.18,178.15,5.65175308]
[1747916824554,0.0359302,178.18,178.16,5.6123]
[1747916825252,0.0359302,178.18,178.17,5.6121]
[1747916825557,0.0359302,178.18,178.15,0.03935308]
[1747916826356,0.0359302,178.18,178.16,5.6122]
[1747916826854,0.0359302,178.18,178.16,5.6124]
[1747916828163,0.0359302,178.18,178.17,5.6121]
[1747916830859,0.0359302,178.18,178.16,1.963]
[1747916831049,0.0359302,178.18,178.15,0.03935308]
[1747916831659,5.6479302,178.18,178.15,0.03935308]
[1747916832463,5.6121,178.17,178.15,0.03935308]
[1747916832659,0.0359302,178.18,178.15,0.03935308]
[1747916832861,136.44,178.17,178.08,136.44]
[1747916833054,5.6132,178.14,178.1,5.6141]
[1747916833359,136.44,178.17,178.1,5.6141]
[1747916833660,5.6135,178.13,178.1,5.6141]
[1747916833861,0.03907619,178.13,178.1,0.04105446]
[1747916835067,0.03907619,178.13,178.12,5.6136]
[1747916835561,0.03907619,178.13,178.11,5.6139]
[1747916835763,0.03907619,178.13,178.1,0.04105446]
[1747916836059,10.84032124,178.18,178.15,5.6126]
[1747916836361,5.22842124,178.18,178.09,136.44]
[1747916836967,0.04118641,178.15,178.12,0.04082386]
[1747916837563,0.04118641,178.15,178.13,5.6133]
[1747916837862,0.04118641,178.15,178.12,0.04082386]
[1747916838663,0.04118641,178.15,178.14,5.613]
[1747916838967,0.04118641,178.15,178.12,0.04082386]
[1747916839263,0.04118641,178.15,178.13,5.6133]
[1747916840558,0.04118641,178.15,178.12,0.04082386]
[1747916841262,0.04118641,178.15,178.13,5.6131]
[1747916841859,0.04118641,178.15,178.12,5.65432386]
[1747916842066,0.04118641,178.15,178.12,0.04082386]
[1747916842267,5.6132,178.14,178.12,0.04082386]
[1747916842561,0.04118641,178.15,178.12,0.04082386]
[1747916842963,5.6133,178.13,178.12,0.04082386]
[1747916843160,0.04118641,178.15,178.06,3.9727]
[1747916843358,136.44,178.16,178.06,3.9727]
[1747916844465,5.6143,178.1,178.09,0.04064157]
[1747916846369,5.27149041,178.13,178.09,5.65504157]
[1747916846565,5.27149041,178.13,178.09,0.04064157]
[1747916846869,10.88499041,178.13,178.09,0.04064157]
[1747916847269,10.88499041,178.13,178.1,5.6141]
[1747916848264,5.27149041,178.13,178.11,5.6138]
[1747916848470,5.27149041,178.13,178.09,0.04064157]
[1747916848872,0.04306917,178.13,178.09,0.04064157]
[1747916849061,5.65646917,178.13,178.1,5.6141]
[1747916849876,0.04306917,178.13,178.1,5.6141]
[1747916850872,0.04306917,178.13,178.09,0.04064157]
[1747916852481,5.6138,178.12,178.09,5.65524157]
[1747916852679,0.04306917,178.13,178.09,0.04064157]
[1747916853084,5.6139,178.12,178.09,5.65524157]
[1747916854078,5.614,178.11,178.09,0.04064157]
[1747916854381,0.04306917,178.13,178.09,0.04064157]
[1747916854582,5.6141,178.11,178.09,0.04064157]
[1747916855080,5.6141,178.11,178.09,5.65524157]
[1747916855481,5.6143,178.1,178.09,0.04064157]
[1747916856180,5.6141,178.11,178.09,0.04064157]
[1747916857284,5.6143,178.1,178.09,0.04064157]
[1747916857784,5.614,178.11,178.09,0.04064157]
[1747916857985,0.04306917,178.13,178.09,0.04064157]
[1747916858583,5.6141,178.11,178.09,0.04064157]
[1747916858770,0.04306917,178.13,178.09,0.04064157]
[1747916859175,5.6143,178.1,178.09,0.04064157]
[1747916864985,139.3343,178.1,178.09,0.04064157]
[1747916866190,139.3343,178.1,178.09,4.157e-05]
[1747916871599,5.6143,178.1,178.09,4.157e-05]
[1747916883393,5.22842124,178.12,178.11,5.614]
[1747916883993,2.10642124,178.12,178.1,2.009]
[1747916884505,5.614,178.11,178.1,2.009]
[1747916884694,2.10642124,178.12,178.1,2.009]
[1747916885103,5.614,178.11,178.1,2.009]
[1747916886006,5.6143,178.1,178.09,4.157e-05]
[1747916892221,0.04306917,178.13,178.09,5.62004157]
[1747916892415,6.97122832,178.18,178.1,236.02]
[1747916892805,6.97122832,178.18,178.09,4.157e-05]
[1747916893113,5.6138,178.12,178.09,4.157e-05]
[1747916893316,5.64961315,178.12,178.09,4.157e-05]
[1747916893714,5.6141,178.11,178.09,4.157e-05]
[1747916894516,5.64961315,178.12,178.09,4.157e-05]
[1747916894906,0.03581315,178.12,178.09,5.61464157]
[1747916895107,0.03581315,178.12,178.09,4.157e-05]
[1747916895805,5.6143,178.1,178.09,4.157e-05]
[1747916900531,5.614,178.11,178.09,4.157e-05]
[1747916901029,5.6143,178.1,178.09,4.157e-05]
[1747916902330,5.614,178.11,178.09,4.157e-05]
[1747916902525,0.03581315,178.12,178.09,4.157e-05]
[1747916903228,5.6143,178.1,178.09,4.157e-05]
[1747916905732,5.64971315,178.12,178.09,4.157e-05]
[1747916905931,0.03581315,178.12,178.1,5.6143]